fUST/lending_fUST_20250901
["ID","MTS","AMOUNT","RATE_DAILY","PERIOD"]
[382546359,1756663851586,-151.0,0.00017458,2]
[382546360,1756663851598,-151.0,0.00017458,2]
[382546361,1756663851607,-151.0,0.00017458,2]
[382546362,1756663851622,-151.0,0.00017458,2]
[382546363,1756663851632,-151.0,0.00017458,2]
[382546364,1756663851645,-151.0,0.00017458,2]
[382546365,1756663851656,-200.0,0.00017458,3]
[382546366,1756663851666,-200.0,0.00017458,3]
[382546367,1756663851676,-200.0,0.00017458,3]
[382546368,1756663851688,-200.0,0.00017458,3]
[382546369,1756663851697,-200.0,0.00017458,3]
[382546370,1756663851707,-151.0,0.00017458,2]
[382546371,1756663851717,-151.0,0.00017458,2]
[382546372,1756663851726,-151.0,0.00017458,2]
[382546373,1756663851736,-151.0,0.00017458,2]
[382546374,1756663851747,-151.0,0.00017458,2]
[382546375,1756663851757,-151.0,0.00017458,2]
[382546376,1756663851770,-151.0,0.00017458,2]
[382546377,1756663851782,-238.055936,0.00017458,2]
[382546378,1756663851792,-238.055936,0.00017458,2]
[382546379,1756663851803,-238.055936,0.00017458,2]
[382546380,1756663851813,-238.055936,0.00017458,2]
[382546381,1756663851825,-151.0,0.00017458,2]
[382546382,1756663851836,-151.0,0.00017458,2]
[382546383,1756663851847,-151.0,0.00017458,2]
[382546384,1756663851859,-258.96907,0.00017458,2]
[382546385,1756663851869,-168.887494,0.00017458,2]
[382546386,1756663851882,-168.887494,0.00017458,2]
[382546387,1756663851891,-168.887494,0.00017458,2]
[382546388,1756663851901,-168.887494,0.00017458,2]
[382546389,1756663851915,-151.0,0.00017458,2]
[382546390,1756663851926,-151.0,0.00017458,2]
[382546391,1756663851938,-151.0,0.00017458,2]
[382546392,1756663851949,-284.048892,0.00017458,2]
[382546393,1756663851959,-151.0,0.00017458,2]
[382546394,1756663851969,-500.0,0.00017473,2]
[382546395,1756663851978,-500.0,0.00017473,2]
[382546396,1756663851988,-500.0,0.00017473,2]
[382546397,1756663851999,-500.0,0.00017473,2]
[382546398,1756663852010,-500.0,0.00017473,2]
[382546399,1756663852020,-500.0,0.00017473,2]
[382546400,1756663852030,-500.0,0.00017473,2]
[382546401,1756663852040,-500.0,0.00017473,2]
[382546402,1756663852049,-500.0,0.00017473,2]
[382546403,1756663852061,-629.53150776,0.00017473,2]
[382546404,1756663852071,-500.0,0.00017473,2]
[382546405,1756663852080,-500.0,0.00017473,2]
[382546406,1756663852090,-403.58140753,0.00017473,2]
[382546407,1756663852100,-500.0,0.00017473,2]
[382546408,1756663852111,-500.0,0.00017473,2]
[382546409,1756663852122,-500.0,0.00017473,2]
[382546410,1756663852132,-608.87160144,0.00017473,2]
[382546411,1756663852142,-510.94333666,0.00017473,2]
[382546412,1756663852151,-500.0,0.00017473,2]
[382546413,1756663852160,-500.0,0.00017473,2]
[382546414,1756663852171,-373.13586244,0.00017473,2]
[382546415,1756663852180,-500.0,0.00017473,2]
[382546416,1756663852190,-500.0,0.00017473,2]
[382546417,1756663852201,-500.0,0.00017473,2]
[382546418,1756663852212,-260.02063308,0.00017473,2]
[382546419,1756663852223,-500.0,0.00017473,2]
[382546420,1756663852237,-500.0,0.00017473,2]
[382546421,1756663852247,-500.0,0.00017473,2]
[382546422,1756663852256,-500.0,0.00017473,2]
[382546423,1756663852268,-500.0,0.00017473,2]
[382546424,1756663852277,-500.0,0.00017473,2]
[382546425,1756663852287,-500.0,0.00017473,2]
[382546426,1756663852299,-500.0,0.00017473,2]
[382546427,1756663852310,-500.0,0.00017473,2]
[382546428,1756663852322,-500.0,0.00017473,2]
[382546429,1756663852332,-500.0,0.00017473,2]
[382546430,1756663852343,-500.0,0.00017473,2]
[382546431,1756663852352,-500.0,0.00017473,2]
[382546432,1756663852362,-500.0,0.00017473,2]
[382546433,1756663852372,-500.0,0.00017473,2]
[382546434,1756663852382,-500.0,0.00017473,2]
[382546435,1756663852392,-500.0,0.00017473,2]
[382546436,1756663852402,-386.52954866,0.00017473,2]
[382546437,1756663852412,-500.0,0.00017473,2]
[382546438,1756663852422,-500.0,0.00017473,2]
[382546439,1756663852431,-151.0,0.00017473,2]
[382546440,1756663852441,-151.0,0.00017473,2]
[382546441,1756663852450,-1744.0,0.00017488,2]
[382546442,1756663852460,-151.0,0.000175,2]
[382546443,1756663852470,-151.0,0.000175,2]
[382546444,1756663852479,-151.0,0.000175,2]
[382546445,1756663852489,-183.229107,0.00017517,2]
[382546446,1756663852499,-500.0,0.00017521,2]
[382546447,1756663852508,-500.0,0.00017521,2]
[382546448,1756663852518,-1443.0,0.00017521,2]
[382546449,1756663852527,-500.0,0.00017521,2]
[382546450,1756663852537,-500.0,0.00017521,2]
[382546451,1756663852547,-500.0,0.00017521,2]
[382546452,1756663852556,-276.34246342,0.00017521,2]
[382546453,1756663852566,-480.0,0.00017521,2]
[382546454,1756663852575,-852.81,0.00017521,2]
[382546455,1756663852585,-763.5,0.00017521,2]
[382546456,1756663852595,-500.0,0.00017521,2]
[382546457,1756663852604,-480.0,0.00017521,2]
[382546458,1756663852613,-480.0,0.00017521,2]
[382546459,1756663852623,-480.0,0.00017521,2]
[382546460,1756663852633,-480.0,0.00017521,2]
[382546461,1756663852642,-480.0,0.00017521,2]
[382546462,1756663852652,-151.0,0.00017521,2]
[382546463,1756663852661,-480.0,0.00017521,2]
[382546464,1756663852671,-480.0,0.00017521,2]
[382546465,1756663852680,-547.95,0.00017521,2]
[382546466,1756663852690,-480.0,0.00017521,2]
[382546467,1756663852700,-710.85,0.00017521,2]
[382546468,1756663852710,-480.0,0.00017521,2]
[382546469,1756663852719,-977.51,0.00017521,2]
[382546470,1756663852729,-480.0,0.00017521,2]
[382546471,1756663852738,-480.0,0.00017521,2]
[382546472,1756663852748,-480.0,0.00017521,2]
[382546473,1756663852759,-512.4,0.00017521,2]
[382546474,1756663852768,-480.0,0.00017521,2]
[382546475,1756663852777,-480.0,0.00017521,2]
[382546476,1756663852788,-480.0,0.00017521,2]
[382546477,1756663852798,-604.86,0.00017521,2]
[382546478,1756663852807,-731.8,0.00017521,2]
[382546479,1756663852817,-848.67,0.00017521,2]
[382546480,1756663852826,-625.64,0.00017521,2]
[382546481,1756663852837,-151.123548,0.00017521,2]
[382546482,1756663852849,-480.0,0.00017521,2]
[382546483,1756663852858,-1234.88,0.00017521,2]
[382546484,1756663852868,-480.0,0.00017521,2]
[382546485,1756663852878,-486.26,0.00017521,2]
[382546486,1756663852888,-950.35,0.00017521,2]
[382546487,1756663852897,-765.75,0.00017521,2]
[382546488,1756663852907,-480.0,0.00017521,2]
[382546489,1756663852917,-480.0,0.00017521,2]
[382546490,1756663852926,-480.0,0.00017521,2]
[382546491,1756663852937,-480.0,0.00017521,2]
[382546492,1756663852947,-480.0,0.00017521,2]
[382546493,1756663852956,-480.0,0.00017521,2]
[382546494,1756663852966,-480.0,0.00017521,2]
[382546495,1756663852976,-583.46,0.00017521,2]
[382546496,1756663852985,-599.00710125,0.00017521,2]
[382546497,1756663852995,-480.0,0.00017521,2]
[382546498,1756663853006,-480.0,0.00017521,2]
[382546499,1756663853015,-480.0,0.00017521,2]
[382546500,1756663853026,-480.0,0.00017521,2]
[382546501,1756663853035,-480.0,0.00017521,2]
[382546502,1756663853046,-480.0,0.00017521,2]
[382546503,1756663853055,-652.28,0.00017521,2]
[382546504,1756663853064,-574.84,0.00017521,2]
[382546505,1756663853074,-480.0,0.00017521,2]
[382546506,1756663853083,-532.79,0.00017521,2]
[382546507,1756663853093,-375.38087227,0.00017524,2]
[382546508,1756663853103,-1501.5234891,0.00017524,2]
[382546509,1756663853114,-3378.42785047,0.00017524,2]
[382546510,1756663853124,-6000.08786244,0.00017524,2]
[382546511,1756663853134,-559.27044232,0.00017524,2]
[382546512,1756663853143,-206.36092207,0.00017524,2]
[382546513,1756663853153,-824.61824458,0.00017524,2]
[382546514,1756663853163,-258.61964376,0.00017524,2]
[382546515,1756663853174,-644.66723081,0.00017524,2]
[382546516,1756663853184,-2237.08176927,0.00017524,2]
[382546517,1756663853193,-2576.0902543,0.00017524,2]
[382546518,1756663853204,-20168.84753729,0.00017551,2]
[382546519,1756663853213,-697.0,0.00017574,2]
[382546520,1756663853226,-300.0,0.00017594,2]
[382546521,1756663853238,-300.0,0.00017594,2]
[382546522,1756663853248,-300.0,0.00017594,2]
[382546523,1756663853259,-300.0,0.00017594,2]
[382546524,1756663853279,-300.0,0.00017594,2]
[382546525,1756663853293,-300.0,0.00017594,2]
[382546526,1756663853309,-300.0,0.00017594,2]
[382546527,1756663853320,-300.0,0.00017594,2]
[382546528,1756663853330,-300.0,0.00017594,2]
[382546529,1756663853340,-300.0,0.00017594,2]
[382546530,1756663853350,-300.0,0.00017594,2]
[382546531,1756663853360,-300.0,0.00017594,2]
[382546532,1756663853370,-300.0,0.00017594,2]
[382546533,1756663853379,-300.0,0.00017594,2]
[382546534,1756663853390,-300.0,0.00017594,2]
[382546535,1756663853399,-600.0,0.00017594,2]
[382546536,1756663853409,-151.0,0.00017594,2]
[382546537,1756663853419,-193.694951,0.00017594,2]
[382546538,1756663853429,-151.0,0.00017594,2]
[382546539,1756663853439,-2098.79470144,0.000176,2]
[382546540,1756663853449,-151.0,0.000176,2]
[382546541,1756663853458,-151.0,0.000176,2]
[382546542,1756663853469,-151.0,0.000176,2]
[382546543,1756663853479,-151.0,0.000176,2]
[382546544,1756663853489,-151.0,0.000176,2]
[382546545,1756663853498,-1114.55,0.00017618,2]
[382546546,1756663853507,-480.0,0.00017618,2]
[382546547,1756663853518,-480.0,0.00017618,2]
[382546548,1756663853527,-480.0,0.00017618,2]
[382546549,1756663853538,-484.58,0.00017618,2]
[382546550,1756663853547,-553.99,0.00017618,2]
[382546551,1756663853559,-584.35,0.00017618,2]
[382546552,1756663853569,-2129.52,0.00017618,2]
[382546553,1756663853578,-518.3,0.00017618,2]
[382546554,1756663853588,-1761.05,0.00017618,2]
[382546555,1756663853598,-1192.46,0.00017618,2]
[382546556,1756663853608,-1754.38,0.00017618,2]
[382546557,1756663853619,-480.0,0.00017618,2]
[382546558,1756663853630,-744.54,0.00017618,2]
[382546559,1756663853640,-480.0,0.00017618,2]
[382546560,1756663853650,-480.0,0.00017618,2]
[382546561,1756663853660,-625.83,0.00017618,2]
[382546562,1756663853670,-760.49,0.00017618,2]
[382546563,1756663853679,-480.0,0.00017618,2]
[382546564,1756663853689,-480.0,0.00017618,2]
[382546565,1756663853700,-592.49,0.00017618,2]
[382546566,1756663853710,-567.45,0.00017618,2]
[382546567,1756663853719,-480.0,0.00017619,2]
[382546568,1756663853728,-1065.21,0.00017619,2]
[382546569,1756663853737,-480.0,0.00017619,2]
[382546570,1756663853749,-480.0,0.00017619,2]
[382546571,1756663853759,-480.0,0.00017619,2]
[382546572,1756663853770,-480.0,0.00017619,2]
[382546573,1756663853780,-480.0,0.00017619,2]
[382546574,1756663853790,-151.0,0.00017619,2]
[382546575,1756663853799,-151.0,0.00017619,2]
[382546576,1756663853809,-565.44,0.00017619,2]
[382546577,1756663853819,-151.0,0.00017619,2]
[382546578,1756663853828,-480.0,0.00017619,2]
[382546579,1756663853842,-151.0,0.00017619,2]
[382546580,1756663853852,-619.74,0.00017619,2]
[382546581,1756663853862,-504.19,0.00017619,2]
[382546582,1756663853871,-514.21,0.00017619,2]
[382546583,1756663853880,-1545.76,0.00017619,2]
[382546584,1756663853891,-151.0,0.00017619,2]
[382546585,1756663853900,-480.0,0.00017619,2]
[382546586,1756663853910,-480.0,0.00017619,2]
[382546587,1756663853919,-510.56,0.00017619,2]
[382546588,1756663853929,-480.0,0.00017619,2]
[382546589,1756663853939,-151.0,0.00017619,2]
[382546590,1756663853949,-151.0,0.00017619,2]
[382546591,1756663853959,-151.0,0.00017619,2]
[382546592,1756663853968,-212.903848,0.00017619,2]
[382546593,1756663853977,-738.05,0.00017619,2]
[382546594,1756663853987,-837.22,0.00017619,2]
[382546595,1756663854042,-480.0,0.00017619,2]
[382546596,1756663854052,-480.0,0.00017619,2]
[382546597,1756663854061,-480.0,0.00017619,2]
[382546598,1756663854071,-1035.09,0.00017619,2]
[382546599,1756663854080,-668.82,0.00017619,2]
[382546600,1756663854089,-1122.9,0.00017619,2]
[382546601,1756663854098,-719.24,0.00017619,2]
[382546602,1756663854107,-151.0,0.00017619,2]
[382546603,1756663854116,-853.26,0.00017619,2]
[382546604,1756663854126,-480.0,0.00017619,2]
[382546605,1756663854145,-151.0,0.00017619,2]
[382546606,1756663854156,-480.0,0.00017619,2]
[382546607,1756663854165,-502.13,0.00017619,2]
[382546608,1756663854175,-480.0,0.00017619,2]
[382546609,1756663854185,-480.0,0.00017619,2]
[382546610,1756663854194,-480.0,0.00017619,2]
[382546611,1756663854206,-480.0,0.00017619,2]
[382546612,1756663854216,-586.78,0.00017619,2]
[382546613,1756663854229,-727.45,0.00017619,2]
[382546614,1756663854241,-480.0,0.00017619,2]
[382546615,1756663854251,-480.0,0.00017619,2]
[382546616,1756663854261,-151.0,0.00017619,2]
[382546617,1756663854271,-151.0,0.00017619,2]
[382546618,1756663854280,-506.27,0.00017619,2]
[382546619,1756663854290,-201.455727,0.00017619,2]
[382546620,1756663854300,-690.59,0.00017619,2]
[382546621,1756663854310,-1004.02,0.00017619,2]
[382546622,1756663854321,-1000.12,0.00017619,2]
[382546623,1756663854331,-480.0,0.00017619,2]
[382546624,1756663854340,-480.0,0.00017619,2]
[382546625,1756663854350,-429.64209308,0.00017619,2]
[382546626,1756663854359,-238.055936,0.00017619,2]
[382546627,1756663854369,-238.055936,0.00017619,2]
[382546628,1756663854379,-238.055936,0.00017619,2]
[382546629,1756663854388,-238.05594,0.00017619,2]
[382546630,1756663854398,-960.92,0.00017619,2]
[382546631,1756663854408,-5709.13,0.00017619,2]
[382546632,1756663854417,-807.97,0.00017619,2]
[382546633,1756663854427,-1056.16,0.00017619,2]
[382546634,1756663854439,-873.14,0.00017619,2]
[382546635,1756663854450,-3641.22,0.00017619,2]
[382546636,1756663854459,-151.0,0.00017619,2]
[382546637,1756663854469,-652.64,0.00017619,2]
[382546638,1756663854479,-1023.16,0.00017619,2]
[382546639,1756663854489,-480.0,0.00017619,2]
[382546640,1756663854499,-1318.64,0.00017619,2]
[382546641,1756663854508,-1747.03,0.00017619,2]
[382546642,1756663854518,-480.0,0.00017619,2]
[382546643,1756663854527,-480.0,0.00017619,2]
[382546644,1756663854537,-480.0,0.00017619,2]
[382546645,1756663854547,-480.0,0.00017619,2]
[382546646,1756663854557,-828.71,0.00017619,2]
[382546647,1756663854566,-480.0,0.00017619,2]
[382546648,1756663854576,-848.0,0.00017619,2]
[382546649,1756663854587,-494.09,0.00017619,2]
[382546650,1756663854596,-480.0,0.00017619,2]
[382546651,1756663854606,-480.0,0.00017619,2]
[382546652,1756663854616,-4134.51,0.00017619,2]
[382546653,1756663854625,-480.0,0.00017619,2]
[382546654,1756663854635,-480.0,0.00017619,2]
[382546655,1756663854645,-486.53,0.00017619,2]
[382546656,1756663854654,-480.0,0.00017619,2]
[382546657,1756663854664,-480.0,0.00017619,2]
[382546658,1756663854674,-4976.34,0.00017619,2]
[382546659,1756663854684,-899.11,0.00017619,2]
[382546660,1756663854694,-604.68,0.00017619,2]
[382546661,1756663854703,-480.0,0.00017619,2]
[382546662,1756663854712,-2257.96,0.00017619,2]
[382546663,1756663854721,-915.0,0.00017619,2]
[382546664,1756663854730,-866.44,0.00017619,2]
[382546665,1756663854739,-494.9,0.00017619,2]
[382546666,1756663854748,-151.0,0.00017619,2]
[382546667,1756663854758,-1296.33,0.00017619,2]
[382546668,1756663854767,-480.0,0.00017619,2]
[382546669,1756663854777,-480.0,0.00017619,2]
[382546670,1756663854786,-1042.9,0.00017619,2]
[382546671,1756663854795,-480.0,0.00017619,2]
[382546672,1756663854805,-997.0,0.00017619,2]
[382546673,1756663854815,-618.75,0.00017619,2]
[382546674,1756663854824,-480.0,0.00017619,2]
[382546675,1756663854834,-480.0,0.00017619,2]
[382546676,1756663854843,-151.0,0.00017619,2]
[382546677,1756663854852,-151.0,0.00017619,2]
[382546678,1756663854862,-748.32,0.00017619,2]
[382546679,1756663854871,-480.0,0.00017619,2]
[382546680,1756663854882,-1041.59,0.00017619,2]
[382546681,1756663854891,-989.12,0.00017619,2]
[382546682,1756663854901,-480.0,0.00017619,2]
[382546683,1756663854910,-523.97,0.00017619,2]
[382546684,1756663854919,-480.0,0.00017619,2]
[382546685,1756663854928,-706.73,0.00017619,2]
[382546686,1756663854938,-1104.14,0.00017619,2]
[382546687,1756663854947,-480.0,0.00017619,2]
[382546688,1756663854956,-168.887494,0.00017619,2]
[382546689,1756663854967,-168.887494,0.00017619,2]
[382546690,1756663854976,-480.0,0.00017619,2]
[382546691,1756663854986,-168.887494,0.00017619,2]
[382546692,1756663854995,-151.0,0.00017619,2]
[382546693,1756663855006,-168.887494,0.00017619,2]
[382546694,1756663855015,-151.0,0.00017619,2]
[382546695,1756663855025,-480.0,0.00017619,2]
[382546696,1756663855034,-151.0,0.00017619,2]
[382546697,1756663855044,-160.424535,0.00017619,2]
[382546698,1756663855055,-942.43,0.00017619,2]
[382546699,1756663855064,-695.96,0.00017619,2]
[382546700,1756663855073,-480.0,0.00017619,2]
[382546701,1756663855084,-436.0,0.00017625,2]
[382546702,1756663855094,-436.0,0.00017633,2]
[382546703,1756663855104,-160.0,0.00017647,2]
[382546704,1756663855114,-160.0,0.00017647,2]
[382546705,1756663855124,-160.0,0.00017647,2]
[382546706,1756663855136,-11364.23969824,0.00017648,2]
[382546707,1756663855145,-160.0,0.00017648,2]
[382546708,1756663855155,-160.0,0.00017648,2]
[382546709,1756663855166,-425.75173308,0.00017648,2]
[382546710,1756663855175,-232.78794292,0.00017648,2]
[382546711,1756663855184,-160.0,0.00017648,2]
[382546712,1756663855194,-845.95363151,0.00017648,2]
[382546713,1756663855204,-160.0,0.00017648,2]
[382546714,1756663855214,-530.02580203,0.00017648,2]
[382546715,1756663855226,-417.15472785,0.00017648,2]
[382546716,1756663855236,-160.0,0.00017648,2]
[382546717,1756663855245,-217.4012883,0.00017648,2]
[382546718,1756663855255,-160.0,0.00017648,2]
[382546719,1756663855264,-160.0,0.00017648,2]
[382546720,1756663855274,-151.0,0.00017693,2]
[382546721,1756663855283,-151.0,0.00017693,2]
[382546722,1756663855293,-1887.87,0.00017693,2]
[382546723,1756663855304,-3163.64,0.00017693,2]
[382546724,1756663855313,-636.1,0.00017693,2]
[382546725,1756663855322,-480.0,0.00017693,2]
[382546726,1756663855332,-910.73,0.00017693,2]
[382546727,1756663855341,-1292.35,0.00017693,2]
[382546728,1756663855351,-600.18,0.00017693,2]
[382546729,1756663855360,-500.0,0.00017694,2]
[382546730,1756663855369,-480.0,0.00017694,2]
[382546731,1756663855378,-492.3,0.00017694,2]
[382546732,1756663855386,-498.98,0.00017694,2]
[382546733,1756663855395,-1166.01,0.00017694,2]
[382546734,1756663855405,-480.0,0.00017694,2]
[382546735,1756663855416,-300.99974728,0.00017694,2]
[382546736,1756663855426,-480.0,0.00017694,2]
[382546737,1756663855438,-526.61,0.00017694,2]
[382546738,1756663855448,-1015.61,0.00017694,2]
[382546739,1756663855458,-480.0,0.00017694,2]
[382546740,1756663855468,-480.0,0.00017694,2]
[382546741,1756663855478,-480.0,0.00017694,2]
[382546742,1756663855488,-893.7,0.00017694,2]
[382546743,1756663855498,-480.0,0.00017694,2]
[382546744,1756663855507,-480.0,0.00017694,2]
[382546745,1756663855517,-480.0,0.00017694,2]
[382546746,1756663855526,-588.99,0.00017694,2]
[382546747,1756663855535,-480.0,0.00017694,2]
[382546748,1756663855545,-1280.26,0.00017694,2]
[382546749,1756663855555,-1074.17,0.00017694,2]
[382546750,1756663855565,-480.0,0.00017694,2]
[382546751,1756663855574,-480.0,0.00017694,2]
[382546752,1756663855584,-607.35,0.00017694,2]
[382546753,1756663855593,-499.64,0.00017694,2]
[382546754,1756663855603,-1214.75,0.00017694,2]
[382546755,1756663855614,-480.0,0.00017694,2]
[382546756,1756663855625,-483.83681509,0.00017694,2]
[382546757,1756663855635,-600.48,0.00017694,2]
[382546758,1756663855645,-480.0,0.00017694,2]
[382546759,1756663855655,-480.0,0.00017694,2]
[382546760,1756663855667,-1129.46,0.00017694,2]
[382546761,1756663855677,-480.0,0.00017694,2]
[382546762,1756663855687,-480.0,0.00017694,2]
[382546763,1756663855698,-669.42,0.00017694,2]
[382546764,1756663855708,-480.0,0.00017694,2]
[382546765,1756663855718,-487.47,0.00017694,2]
[382546766,1756663855728,-480.0,0.00017694,2]
[382546767,1756663855739,-1371.46,0.00017694,2]
[382546768,1756663855749,-151.0,0.00017694,2]
[382546769,1756663855758,-1039.62,0.00017694,2]
[382546770,1756663855768,-480.0,0.00017694,2]
[382546771,1756663855779,-874.47,0.00017694,2]
[382546772,1756663855789,-480.0,0.00017694,2]
[382546773,1756663855799,-480.0,0.00017694,2]
[382546774,1756663855808,-480.0,0.00017694,2]
[382546775,1756663855819,-986.16,0.00017694,2]
[382546776,1756663855829,-480.0,0.00017694,2]
[382546777,1756663855839,-480.0,0.00017694,2]
[382546778,1756663855849,-480.0,0.00017694,2]
[382546779,1756663855859,-480.0,0.00017694,2]
[382546780,1756663855869,-524.75,0.00017694,2]
[382546781,1756663855878,-480.0,0.00017694,2]
[382546782,1756663855889,-1277.35,0.00017694,2]
[382546783,1756663855899,-480.0,0.00017694,2]
[382546784,1756663855909,-1064.59,0.00017694,2]
[382546785,1756663855919,-480.0,0.00017694,2]
[382546786,1756663855929,-480.0,0.00017694,2]
[382546787,1756663855939,-480.0,0.00017694,2]
[382546788,1756663855949,-717.99,0.00017694,2]
[382546789,1756663855959,-480.0,0.00017694,2]
[382546790,1756663855969,-480.0,0.00017694,2]
[382546791,1756663855979,-480.0,0.00017694,2]
[382546792,1756663855989,-567.93,0.00017694,2]
[382546793,1756663855998,-1157.17,0.00017694,2]
[382546794,1756663856008,-302.72998139,0.00017694,2]
[382546795,1756663856019,-480.0,0.00017694,2]
[382546796,1756663856030,-666.75,0.00017694,2]
[382546797,1756663856039,-596.14,0.00017694,2]
[382546798,1756663856049,-480.0,0.00017694,2]
[382546799,1756663856061,-480.0,0.00017694,2]
[382546800,1756663856071,-1198.43,0.00017694,2]
[382546801,1756663856082,-480.0,0.00017694,2]
[382546802,1756663856093,-595.33,0.00017694,2]
[382546803,1756663856111,-480.0,0.00017694,2]
[382546804,1756663856122,-480.0,0.00017694,2]
[382546805,1756663856133,-480.0,0.00017694,2]
[382546806,1756663856144,-480.0,0.00017694,2]
[382546807,1756663856155,-536.49,0.00017694,2]
[382546808,1756663856165,-480.0,0.00017694,2]
[382546809,1756663856175,-480.0,0.00017694,2]
[382546810,1756663856186,-480.0,0.00017694,2]
[382546811,1756663856196,-549.55,0.00017694,2]
[382546812,1756663856206,-516.35,0.00017694,2]
[382546813,1756663856216,-480.0,0.00017694,2]
[382546814,1756663856228,-962.38,0.00017694,2]
[382546815,1756663856239,-552.36,0.00017694,2]
[382546816,1756663856249,-973.51,0.00017694,2]
[382546817,1756663856260,-822.05,0.00017694,2]
[382546818,1756663856271,-480.0,0.00017694,2]
[382546819,1756663856281,-480.0,0.00017694,2]
[382546820,1756663856291,-480.0,0.00017694,2]
[382546821,1756663856303,-554.79,0.00017694,2]
[382546822,1756663856314,-519.71,0.00017694,2]
[382546823,1756663856324,-1180.13,0.00017694,2]
[382546824,1756663856333,-1022.47,0.00017694,2]
[382546825,1756663856344,-1156.67,0.00017694,2]
[382546826,1756663856354,-480.0,0.00017694,2]
[382546827,1756663856364,-480.0,0.00017694,2]
[382546828,1756663856375,-480.0,0.00017694,2]
[382546829,1756663856385,-1145.21,0.00017694,2]
[382546830,1756663856396,-995.96,0.00017694,2]
[382546831,1756663856406,-1177.74,0.00017694,2]
[382546832,1756663856416,-1260.57,0.00017694,2]
[382546833,1756663856425,-480.0,0.00017694,2]
[382546834,1756663856436,-480.0,0.00017694,2]
[382546835,1756663856446,-480.0,0.00017694,2]
[382546836,1756663856456,-480.0,0.00017694,2]
[382546837,1756663856467,-480.0,0.00017694,2]
[382546838,1756663856476,-480.0,0.00017694,2]
[382546839,1756663856486,-480.0,0.00017694,2]
[382546840,1756663856496,-480.0,0.00017694,2]
[382546841,1756663856506,-480.0,0.00017694,2]
[382546842,1756663856516,-480.0,0.00017694,2]
[382546843,1756663856526,-480.0,0.00017694,2]
[382546844,1756663856536,-480.0,0.00017694,2]
[382546845,1756663856547,-480.0,0.00017694,2]
[382546846,1756663856556,-480.0,0.00017694,2]
[382546847,1756663856567,-480.0,0.00017694,2]
[382546848,1756663856577,-480.0,0.00017694,2]
[382546849,1756663856587,-480.0,0.00017694,2]
[382546850,1756663856597,-1814.06,0.00017694,2]
[382546851,1756663856607,-480.0,0.00017694,2]
[382546852,1756663856617,-1109.88,0.00017694,2]
[382546853,1756663856627,-480.0,0.00017694,2]
[382546854,1756663856637,-533.35,0.00017694,2]
[382546855,1756663856647,-707.16,0.00017694,2]
[382546856,1756663856657,-480.0,0.00017694,2]
[382546857,1756663856667,-637.31,0.00017694,2]
[382546858,1756663856677,-480.0,0.00017694,2]